Workbook

Sheet NSU
B1: Anu Halme os. Kulmala | F1: 7.3.1976
B2: SUPERPESIS | E2: RUNKOSARJA | I2: Kärkilyönnit (KL), pesänvälit | P2: Ylempi loppusarja | U2: Alempi loppusarja | AB2: Arvo-ottelut ja mitalit
B3: Vuosi | C3: Sija | D3: Seura | E3: OTT | F3: KUN | G3: LÖI | H3: TOI | I3: KL | J3: 0 > 1 | K3: 1 > 2 | L3: 2 > 3 | M3: 3 > k | N3: KL-% | P3: OTT | Q3: KUN | R3: LÖI | S3: TOI | T3: KL | U3: OTT | V3: KUN | W3: LÖI | X3: TOI | Y3: KL | Z3: IL | AA3: LL | AB3: Halli | AC3: K | AD3: H | AE3: P
B4: 1994 | C4: 8. | D4: Tarmo | E4: 8 | F4: 0 | G4: 1 | H4: 0 | I4: 3 | J4: 2 | K4: 0 | L4: 0 | M4: 1 | N4: 33.3 % | O4: =PRODUCT(I4/N4) -> 9.009009009
B5: 1995 | C5: 9. | D5: Tarmo | E5: 10 | F5: 0 | G5: 0 | H5: 1 | I5: 4 | J5: 3 | K5: 1 | L5: 0 | M5: 0 | N5: 14.8 % | O5: =PRODUCT(I5/N5) -> 27.02702703
B6: 1996 | C6: 12. | D6: Tarmo | E6: 20 | F6: 0 | G6: 0 | H6: 2 | I6: 25 | J6: 25 | K6: 0 | L6: 0 | M6: =PRODUCT(F6+G6) -> 0 | N6: 43.1 % | O6: =PRODUCT(I6/N6) -> 58.00464037
B7: ****
B8: 2001 | C8: 5. | D8: Lohi | F8: ykköspesis
B9: 2002 | C9: 4. | D9: Lohi | F9: ykköspesis | U9: 7 | V9: 0 | W9: 4 | X9: 2 | Y9: 22
B10: 2003 | C10: 2. | D10: Lohi | F10: ykköspesis
B11: ****
B12: 2008 | C12: 2. | D12: Paukku | F12: ykköspesis
B13: Yhteensä | E13: =SUM(E4:E12) -> 38 | F13: =SUM(F4:F12) -> 0 | G13: =SUM(G4:G12) -> 1 | H13: =SUM(H4:H12) -> 3 | I13: =SUM(I4:I12) -> 32 | J13: =SUM(J4:J12) -> 30 | K13: =SUM(K4:K12) -> 1 | L13: =SUM(L4:L12) -> 0 | M13: =SUM(M4:M12) -> 1 | N13: =PRODUCT(I13/O13) -> 34.0 % | O13: =SUM(O4:O12) -> 94.04067641 | P13: =SUM(P4:P12) -> 0 | Q13: =SUM(Q4:Q12) -> 0 | R13: =SUM(R4:R12) -> 0 | S13: =SUM(S4:S12) -> 0 | T13: =SUM(T4:T12) -> 0 | U13: =SUM(U4:U12) -> 7 | V13: =SUM(V4:V12) -> 0 | W13: =SUM(W4:W12) -> 4 | X13: =SUM(X4:X12) -> 2 | Y13: =SUM(Y4:Y12) -> 22 | Z13: =SUM(Z4:Z12) -> 0 | AA13: =SUM(AA4:AA12) -> 0 | AB13: =SUM(AB4:AB12) -> 0 | AC13: =SUM(AC4:AC12) -> 0 | AD13: =SUM(AD4:AD12) -> 0 | AE13: =SUM(AE4:AE12) -> 0
B14: Pesispörssi | D14: =SUM(F13:H13)+((I13-F13-G13)/3)+(E13/3)+(Z13*25)+(AA13*25)+(AB13*10)+(AC13*25)+(AD13*20)+(AE13*15) -> 27.0
B16: URA SUPERISSA | E16: OTT | F16: KUN | G16: LÖI | H16: TOI | I16: KL | K16: ka/L | L16: ka/T | M16: ka/KL | N16: K - % | P16: ENSIMMÄISET
B17: Runkosarja | E17: =PRODUCT(E13) -> 38 | F17: =PRODUCT(F13) -> 0 | G17: =PRODUCT(G13) -> 1 | H17: =PRODUCT(H13) -> 3 | I17: =PRODUCT(I13) -> 32 | K17: =PRODUCT((F17+G17)/E17) -> 0.03 | L17: =PRODUCT(H17/E17) -> 0.08 | M17: =PRODUCT(I17/E17) -> 0.84 | N17: =PRODUCT(N13) -> 34.0 % | O17: =PRODUCT(O13) -> 94.04067641 | P17: Ottelu | R17: 08.05. 1994 Virkiä - Tarmo 0-2 (1-4, 0-3) | Z17: 1. ottelu | AB17: 18 v 2 kk 1 pv
B18: Ylempi loppusarja | P18: Lyöty | R18: 22.05. 1994 Roihu - Tarmo 1-1 (1-2, 5-3) | Z18: 4. ottelu | AB18: 18 v 2 kk 15 pv
B19: Alempi loppusarja | E19: 7 | F19: 0 | G19: 4 | H19: 2 | I19: 22 | K19: =PRODUCT((F19+G19)/E19) -> 0.57 | L19: =PRODUCT(H19/E19) -> 0.29 | M19: =PRODUCT(I19/E19) -> 3.14 | N19: 46.8 % | O19: =PRODUCT(22/0.468) -> 47.00854701 | P19: Tuotu
B20: KAIKKI | E20: =SUM(E17:E19) -> 45 | F20: =SUM(F17:F19) -> 0 | G20: =SUM(G17:G19) -> 5 | H20: =SUM(H17:H19) -> 5 | I20: =SUM(I17:I19) -> 54 | K20: =PRODUCT((F20+G20)/E20) -> 0.11 | L20: =PRODUCT(H20/E20) -> 0.11 | M20: =PRODUCT(I20/E20) -> 1.20 | N20: =PRODUCT(I20/O20) -> 38.3 % | O20: =SUM(O17:O19) -> 141.0492234 | P20: Kunnari
B22: Seurat | D22: Tarmo = Ikaalisten Tarmo (1908)
D23: Lohi = Jyväskylän Lohi (1924)
D24: Paukku = Hämeenlinnan Paukku (1961)
